[Event "Romanian Championship 2024"]
[Site "Eforie Nord"]
[Date "2024.02.27"]
[Round "5.13"]
[White "Bonte, Andrei-Mihai"]
[Black "Negrean, Andrei"]
[Result "1-0"]
[ECO "A05"]
[WhiteElo "2266"]
[BlackElo "1990"]
[Annotator "TA"]
[PlyCount "91"]
[EventDate "2024.02.24"]
[EventType "swiss"]
[EventCountry "ROU"]
[SourceTitle "playchess.com"]
[Source "ChessBase"]
[SourceQuality "1"]
[TimeControl "40/5400+30:900+30"]

{[%evp 16,91,-1,-8,15,0,11,4,36,-56,20,16,29,9,24,22,36,35,39,32,83,27,32,0,0,0,0,-18,-16,-7,0,-14,58,0,39,41,34,35,43,24,50,37,427,491,504,493,460,500,538,435,831,825,737,419,417,417,1825,1768,2240,1954,2510,2086,2618,1950,11806,6175,6599,5908,4830,4686,29990,29991,29992,29989,29989,29989,29993,921]} 1. Nf3 {[%emt 0:00:13]} Nf6 {[%emt 0:00:19]} 2. b3 {[%emt 0:02:22]} d5 {[%emt 0:02:18]} 3. Bb2 {[%emt 0:00:43]} e6 {[%emt 0:00:09]} 4. g3 {[%emt 0:03:41]} Be7 {[%emt 0:00:33]} 5. Bg2 {[%emt 0:00:07]} O-O {[%emt 0:00:11]} 6. O-O {[%emt 0:00:26]} b6 {[%emt 0:01:59]} 7. d3 {[%emt 0:04:18]} Bb7 {[%emt 0:00:36]} 8. Nbd2 {[%emt 0:00:08]} c5 {[%emt 0:07:18]} 9. e3 {[%emt 0:06:04]} Nbd7 {[%emt 0:05:27]} 10. Qe2 {[%emt 0:12:34]} Qc7 {[%emt 0:03:19]} 11. e4 {[%emt 0:05:20]} d4 {[%emt 0:07:47] The position is equal.} 12. c4 {[%emt 0:01:13]} (12. Rfc1 $14) 12... dxc3 {[%emt 0:09:05]} (12... e5 $15) 13. Bxc3 $11 {[%emt 0:00:19]} Rfd8 {[%emt 0:02:45]} 14. Nc4 {[%emt 0:10:36]} Rac8 {[%emt 0:08:50]} 15. Rfd1 {[%emt 0:01:54]} Qb8 {[%emt 0:03:56]} 16. a4 {[%emt 0:01:01]} h6 {[%emt 0:10:17]} 17. Nfd2 {[%emt 0:05:12]} Qa8 {[%emt 0:05:58]} (17... Qc7 $14) 18. a5 {[%emt 0:13:21] White is more active.} (18. f4 $16) 18... Qb8 {[%emt 0:05:04]} 19. a6 {[%emt 0:02:19]} Ba8 {[%emt 0:04:11]} 20. f4 {[%emt 0:00:07]} Ne8 {[%emt 0:05:20]} 21. e5 {[%emt 0:11:45]} Nc7 {[%emt 0:04:51]} 22. Ne4 {[%emt 0:01:38]} Nb5 {[%emt 0:00:32] [#] Prevents Ncd6. Strongly threatening ...Bxe4.} 23. Bb2 {[%emt 0:00:12]} Nf8 {[%emt 0:04:12]} (23... Nd4 $11 24. Bxd4 Bxe4) 24. h4 {[%emt 0:01:58]} ({White should play} 24. Nf6+ $1 $14 Kh8 (24... gxf6 $2 25. exf6 Bd6 26. Ne5 $18) 25. Ne4) 24... Nd4 {[%emt 0:03:09]} (24... Rc7 $5) 25. Bxd4 {[%emt 0:00:08]} Rxd4 {[%emt 0:00:21]} 26. Ned6 {[%emt 0:01:31]} Bxd6 {[%emt 0:00:36]} 27. Nxd6 {[%emt 0:00:02]} Rd8 {[%emt 0:00:55]} 28. Ra4 $1 {[%emt 0:01:51] Threatens to win with Rxd4.} Ng6 $2 {[%emt 0:03:32][%mdl 8192] A mistake that costs the game.} ({Black should try} 28... R4xd6 $14 29. exd6 b5 (29... Rxd6 30. d4 $16)) 29. Rxd4 $18 {[%emt 0:01:08]} cxd4 {[%emt 0:00:05]} 30. Rc1 {[%emt 0:01:18]} Ne7 {[%emt 0:01:23]} 31. Bxa8 Qxa8 {[%emt 0:00:00]} 32. Rc7 {[%emt 0:03:32]} Nf5 {[%emt 0:00:38]} (32... Nd5 $142) 33. Nxf5 {[%emt 0:03:47]} (33. Rxf7 Nxd6 (33... Nxg3 $2 34. Qg2 $18) 34. Rc7 Nf5 $17) 33... exf5 {[%emt 0:00:02]} 34. Qg2 {[%emt 0:01:03]} Qxg2+ {[%emt 0:00:44]} 35. Kxg2 {[%emt 0:00:01][%mdl 4096] Endgame. KR-KR} Rd5 {[%emt 0:01:04]} (35... Ra8 $142 36. h5 g6 37. hxg6 fxg6) 36. b4 {[%emt 0:04:19]} Rb5 {[%emt 0:00:08]} 37. Rxa7 {[%emt 0:01:02]} Rxb4 {[%emt 0:00:07]} 38. Rb7 {[%emt 0:00:23]} Rb2+ {[%emt 0:01:11]} 39. Kf3 {[%emt 0:00:16]} Ra2 {[%emt 0:00:21]} 40. a7 {[%emt 0:00:00]} Kh7 {[%emt 0:00:00]} 41. Rxf7 {[%emt 0:00:19][%cal Oh4h5] White wants to mate with h5!} (41. Rxb6 Rxa7 42. Rd6 Ra4 $18) 41... Ra3 {[%emt 0:12:17]} 42. e6 {[%emt 0:01:46][%cal Be5e6,Be6e7][%mdl 32] Intending e7! and mate.} Kg6 {[%emt 0:01:11] [#]} 43. h5+ $1 {[%emt 0:00:12][%mdl 512] White mates.} Kxh5 {[%emt 0:00:05]} (43... Kh7 44. Rb7) 44. e7 {[%emt 0:00:32]} g5 {[%emt 0:00:49]} 45. fxg5 {[%emt 0:00:56]} hxg5 {[%emt 0:00:19]} 46. Rh7+ {[%emt 0:00:09] Weighted Error Value: White=0.21 (precise) /Black=0.52.  Loses game:     	---       	Black=1      Mistake:       	White=3     	Black=5      Inaccurate:     	White=1     	Black=2      OK:         	White=11    	Black=6      Best:        	White=4     	Black=2      Strong:       	White=1     	---} (46. e8=Q $142 Rxd3+ 47. Ke2 Kg4 48. Kxd3 (48. a8=B Rc3 49. Rh7 Rxg3) (48. a8=Q Rc3) 48... Kxg3 49. Rxf5 (49. a8=B g4 50. Qe5+ Kh4 51. Rxf5 g3 52. Qxd4+ Kh3 53. Rh5#) (49. a8=Q Kh2 50. Qe2+ Kg3 51. Qeg2+ Kh4 52. Qh8#) 49... Kh4 50. a8=Q (50. a8=B Kg4 51. Rf3 Kh4 52. Qh8+ Kg4 53. Qh3#) 50... Kg4 51. Qf3+ Kh4 52. Qh8#) 1-0

[Event "Romanian Championship 2024"]
[Site "Eforie Nord"]
[Date "2024.02.27"]
[Round "5.14"]
[White "Armenciu, Bogdan-Ovidiu"]
[Black "Radu, David Cr."]
[Result "0-1"]
[ECO "C50"]
[WhiteElo "1936"]
[BlackElo "2142"]
[Annotator "RC"]
[PlyCount "80"]
[EventDate "2024.02.24"]
[EventType "swiss"]
[EventCountry "ROU"]
[SourceTitle "playchess.com"]
[Source "ChessBase"]
[SourceQuality "1"]
[TimeControl "40/5400+30:900+30"]

1. e4 {[%emt 0:00:05]} e5 {[%emt 0:00:31]} 2. Nf3 {[%emt 0:00:07]} Nc6 {[%emt 0:00:09]} 3. Bc4 {[%emt 0:00:14]} d6 {[%emt 0:00:26]} 4. d4 {[%emt 0:04:34]} Bg4 {[%emt 0:03:18]} 5. d5 {[%emt 0:17:18]} Nd4 {[%emt 0:03:59]} 6. c3 {[%emt 0:01:14]} Nxf3+ {[%emt 0:00:43]} 7. gxf3 {[%emt 0:00:03]} Bd7 {[%emt 0:00:24]} 8. a4 {[%emt 0:08:15]} Nf6 {[%emt 0:21:37]} 9. a5 {[%emt 0:05:17]} a6 {[%emt 0:00:19]} 10. Be3 {[%emt 0:00:46]} Nh5 {[%emt 0:04:06]} 11. Nd2 {[%emt 0:08:49]} Be7 {[%emt 0:01:10]} 12. Rg1 {[%emt 0:04:45]} O-O {[%emt 0:17:28]} 13. f4 {[%emt 0:19:38]} Nxf4 {[%emt 0:03:49]} 14. Bxf4 {[%emt 0:01:15]} exf4 {[%emt 0:00:08]} 15. Qf3 {[%emt 0:02:10]} Bf6 {[%emt 0:05:20]} 16. Qxf4 {[%emt 0:01:53]} Be5 {[%emt 0:00:07]} 17. Qe3 {[%emt 0:00:26]} f5 {[%emt 0:03:10]} 18. O-O-O {[%emt 0:06:55]} fxe4 {[%emt 0:08:02]} 19. Rg2 {[%emt 0:03:42]} Qh4 {[%emt 0:03:08]} 20. Rdg1 {[%emt 0:00:32]} Kh8 {[%emt 0:00:13]} 21. Kc2 {[%emt 0:06:21]} Rf4 {[%emt 0:06:02]} 22. f3 {[%emt 0:02:55]} exf3 {[%emt 0:04:29]} 23. Nxf3 {[%emt 0:00:17]} Rxf3 {[%emt 0:00:39]} 24. Qxf3 {[%emt 0:00:09]} Qxc4 {[%emt 0:00:03]} 25. b3 {[%emt 0:02:36]} Qf4 {[%emt 0:10:57]} 26. Qxf4 {[%emt 0:00:38]} Bxf4 {[%emt 0:00:01]} 27. Rxg7 {[%emt 0:00:08]} Bf5+ {[%emt 0:01:30]} 28. Kb2 {[%emt 0:00:21]} Be3 {[%emt 0:00:36]} 29. R1g3 {[%emt 0:01:12]} Bf2 {[%emt 0:00:53]} 30. R3g5 {[%emt 0:00:25]} Bh4 {[%emt 0:00:27]} 31. Rg1 {[%emt 0:00:15]} Rc8 {[%emt 0:00:08]} 32. Rf7 {[%emt 0:01:09]} Bg6 {[%emt 0:00:20]} 33. Rf4 {[%emt 0:00:08]} Be7 {[%emt 0:00:15]} 34. Re1 {[%emt 0:00:28]} Bg5 {[%emt 0:01:35]} 35. Rg4 {[%emt 0:01:04]} Bf6 {[%emt 0:00:11]} 36. Rb4 {[%emt 0:00:42]} c6 {[%emt 0:00:31]} 37. Rxb7 {[%emt 0:01:25]} cxd5 {[%emt 0:00:01]} 38. Rc1 {[%emt 0:00:47]} d4 {[%emt 0:00:16]} 39. Rb6 {[%emt 0:00:30]} dxc3+ {[%emt 0:00:25]} 40. Ka3 {[%emt 0:00:00]} Bg5 {[%emt 0:00:00]} 0-1

[Event "Romanian Championship 2024"]
[Site "Eforie Nord"]
[Date "2024.02.27"]
[Round "5.15"]
[White "Mintau, Andrei-Catalin"]
[Black "David, Alexandru-Vasile"]
[Result "0-1"]
[ECO "B33"]
[WhiteElo "2039"]
[BlackElo "2360"]
[Annotator "TA"]
[PlyCount "88"]
[EventDate "2024.02.24"]
[EventType "swiss"]
[EventCountry "ROU"]
[SourceTitle "playchess.com"]
[Source "ChessBase"]
[SourceQuality "1"]
[TimeControl "40/5400+30:900+30"]

{[%evp 20,88,18,0,3,8,14,0,20,0,0,0,14,-18,0,-47,0,-38,0,-20,49,60,56,62,65,44,64,25,14,18,20,-176,-167,-169,-176,-175,-183,-164,-179,-175,-175,-182,-181,-302,-306,-314,-329,-331,-240,-345,-348,-445,-436,-933,-816,-764,-712,-29978,-29979,-29979,-29980,-29979,-29980,-29979,-29976,-29976,-29977,-29983,-29984,-29984,-29985]} 1. e4 {[%emt 0:00:09]} c5 {[%emt 0:00:13]} 2. Nf3 {[%emt 0:00:05]} Nc6 {[%emt 0:00:05]} 3. d4 {[%emt 0:00:03]} cxd4 {[%emt 0:00:04]} 4. Nxd4 {[%emt 0:00:03]} Nf6 {[%emt 0:00:06]} 5. Nc3 {[%emt 0:00:03]} e5 {[%emt 0:00:04]} 6. Ndb5 {[%emt 0:00:50][%cal Bd4b5,Bb5a3,Ba3c2,Bc2e3][%mdl 32]} d6 {[%emt 0:02:22]} 7. Bg5 {[%emt 0:00:10]} a6 {[%emt 0:00:07]} 8. Na3 {[%emt 0:00:03]} b5 {[%emt 0:00:06][%cal Bb7b5,Bb5b4][%mdl 32]} 9. Nd5 {[%emt 0:00:03]} Be7 {[%emt 0:00:07]} 10. Bxf6 {[%emt 0:00:05]} Bxf6 {[%emt 0:00:06]} 11. c4 {[%emt 0:00:03]} b4 {[%emt 0:00:06]} 12. Nc2 {[%emt 0:00:03]} O-O {[%emt 0:00:05]} 13. g3 {[%emt 0:00:03]} Be6 {[%emt 0:00:11] Die Stellung ist ausgeglichen.} 14. h4 {[%emt 0:01:50]} (14. Ncxb4 Nxb4 15. Nxb4 Qb6 $19) 14... a5 {[%emt 0:01:08]} 15. Qd2 {[%emt 0:01:13]} Rb8 {[%emt 0:02:22]} 16. Nce3 {[%emt 0:03:36]} a4 {[%emt 0:09:27]} 17. O-O-O {[%emt 0:09:12]} (17. Be2 $11 {war vorzuziehen.}) 17... Rb7 {[%emt 0:13:32]} (17... b3 $15 18. a3 g6) 18. Bd3 {[%emt 0:33:35]} Nd4 {[%emt 0:03:40]} 19. f4 {[%emt 0:05:19]} a3 {[%emt 0:05:46]} (19... exf4 $11 20. gxf4 b3 (20... Bxh4 $2 21. Qh2 $18)) 20. b3 $14 {[%emt 0:00:27]} exf4 {[%emt 0:01:01]} 21. gxf4 {[%emt 0:02:12]} Nc6 {[%emt 0:03:51]} (21... Bxh4 $2 22. Qh2 $18) 22. Kb1 {[%emt 0:16:56][%cal Oe4e5]} Bd4 {[%emt 0:02:24]} 23. Rh2 {[%emt 0:07:44]} Ne7 {[%emt 0:02:09]} 24. Bc2 {[%emt 0:07:15]} Nxd5 {[%emt 0:04:04]} 25. exd5 $2 {[%emt 0:01:17] [#] Ein Fehler, der zur Niederlage führt.} (25. Nxd5 $11 {und Weiss muss sich keine Sorgen machen.} Bc5 26. h5) 25... Bxe3 $1 $19 {[%emt 0:03:07]} (25... Bc3 $2 26. Qd3 g6 27. dxe6 $18) 26. Qxe3 {[%emt 0:00:08]} Bg4 {[%emt 0:00:20][%cal Od8f6] ...Qf6! wäre nun fies.} 27. Re1 {[%emt 0:07:11]} Qf6 {[%emt 0:01:02][%csl Ga3][%cal Rf6b2]} 28. Bd3 {[%emt 0:00:08]} h5 $40 {[%emt 0:00:42][%mdl 128] Weiss ist in Schwierigkeiten.} 29. c5 {[%emt 0:03:02]} dxc5 {[%emt 0:06:55]} 30. Qe5 {[%emt 0:00:43]} Rb6 {[%emt 0:07:39]} 31. Rc2 {[%emt 0:00:17]} (31. Bc4 {war nötig.}) 31... Qxh4 {[%emt 0:04:14]} 32. Rxc5 {[%emt 0:00:20]} Rf6 {[%emt 0:00:12]} 33. Rf1 {[%emt 0:01:22]} Bh3 {[%emt 0:03:38]} 34. Rh1 {[%emt 0:00:48]} (34. Rg1 {ist wohl besser.}) 34... Qg3 {[%emt 0:00:19]} (34... Rxf4 35. Rc4 Rxc4 36. bxc4) 35. Be4 {[%emt 0:00:16]} Rxf4 {[%emt 0:02:12] ( -> ...Rf1+)} (35... Qxf4 $2 36. Qxf4 Rxf4 37. Rxh3 Rxe4 38. Rxh5 $19) 36. Qxh5 {[%emt 0:01:11]} (36. Rcc1 $142 Bg4 37. Rhf1) 36... Rxe4 {[%emt 0:00:53]} 37. Rxh3 {[%emt 0:00:05]} Re1+ {[%emt 0:00:37]} 38. Rc1 {[%emt 0:00:03]} Rxc1+ {Schwarz setzt Matt.} 39. Kxc1 {[%emt 0:00:01] KQR-KQR} Qe1+ {[%emt 0:01:26]} 40. Kc2 {[%emt 0:00:00]} Rc8+ {[%emt 0:00:00]} 41. Kd3 {[%emt 0:00:15]} Rc3+ {[%emt 0:00:12]} 42. Kd4 {[%emt 0:00:07]} Qd2+ {[%emt 0:02:03]} 43. Ke5 {[%emt 0:00:33]} Rxh3 {[%emt 0:00:05]} (43... Qxa2 44. Qh8#) 44. Qxh3 {[%emt 0:00:07] [#]} Qc3+ $1 {[%emt 0:00:02] Gewichteter Fehlerwert: Weiß=0.60/Schwarz=0.16 (sehr präzise) .  Verlustzug:     	Weiß=1     	---        Fehler:       	Weiß=4     	Schwarz=2     Ungenau:       	Weiß=3     	---        OK:         	Weiß=6     	Schwarz=9     Bester:       	Weiß=4     	Schwarz=2     Stark:        	---       	Schwarz=1} ({Minderwertig wäre} 44... Qxa2 45. Qc8+ Kh7 46. Qh3+ (46. Qf5+ g6 $11) 46... Kg6 47. Qg4+ Kh6 (47... Kh7 48. Qh4+ Kg6 49. Qg4+ Kh7 50. Qh3+ Kg8 51. Qc8+ Kh7 52. Qh3+ $11) 48. Qh3+ Kg5 49. Qg3+ (49. Qf5+ $2 Kh4 $19) 49... Kh5 50. Qh3+ Kg6 51. Qg4+ Kh7 52. Qh4+ Kg6 53. Qg4+ $11) 0-1

[Event "Romanian Championship 2024"]
[Site "Eforie Nord"]
[Date "2024.02.27"]
[Round "5.16"]
[White "Ciorgovean, Iustin"]
[Black "Vedmediuc, Artiom"]
[Result "1/2-1/2"]
[ECO "A07"]
[WhiteElo "2310"]
[BlackElo "2034"]
[Annotator "TA"]
[PlyCount "43"]
[EventDate "2024.02.24"]
[EventType "swiss"]
[EventCountry "ROU"]
[SourceTitle "playchess.com"]
[Source "ChessBase"]
[SourceQuality "1"]
[TimeControl "40/5400+30:900+30"]

{[%evp 10,43,17,0,2,7,0,0,0,0,0,-14,-7,0,2,-2,-13,-20,-9,-26,-8,-30,0,-8,0,0,0,0,0,0,0,6,10,14,0,-8]} 1. Nf3 {[%emt 0:00:03]} d5 {[%emt 0:00:19]} 2. g3 {[%emt 0:00:06]} Nf6 {[%emt 0:00:08]} 3. Bg2 {[%emt 0:00:05]} c6 {[%emt 0:00:06]} 4. O-O {[%emt 0:00:12]} Bg4 {[%emt 0:01:59]} 5. h3 {[%emt 0:02:03]} Bxf3 {[%emt 0:01:47]} 6. Bxf3 {[%emt 0:00:06]} e5 {[%emt 0:00:21]} 7. d3 {[%emt 0:00:24]} Bc5 {[%emt 0:04:57]} 8. Nd2 {[%emt 0:10:53]} O-O {[%emt 0:00:20]} 9. e4 {[%emt 0:00:06]} Nbd7 {[%emt 0:07:29]} 10. Qe2 {[%emt 0:04:02]} Re8 {[%emt 0:00:41]} 11. Bg2 {[%emt 0:00:13]} Qc7 {[%emt 0:02:56]} 12. Nf3 {[%emt 0:03:17]} Rad8 {[%emt 0:02:04]} 13. Nh2 {[%emt 0:10:17]} Qb6 {[%emt 0:07:05]} 14. h4 {[%emt 0:06:03]} dxe4 {[%emt 0:04:05]} 15. dxe4 {[%emt 1:00:10]} a5 {[%emt 0:09:14]} 16. c3 {[%emt 0:00:00] Die Stellung ist ausgeglichen.} Be7 {[%emt 0:03:31]} 17. Rd1 {[%emt 0:00:00]} Nc5 {[%emt 0:01:51]} 18. Be3 {[%emt 0:00:00]} Rxd1+ {[%emt 0:01:06]} 19. Rxd1 {[%emt 0:00:00]} Rd8 {[%emt 0:00:53]} 20. b3 {[%emt 0:00:00]} Qc7 {[%emt 0:03:46]} 21. Rxd8+ {[%emt 0:03:00]} Qxd8 {[%emt 0:00:20]} 22. Bxc5 {[%emt 0:00:00] Ein ziemlich ruhiges Remis.   Gewichteter Fehlerwert: Weiß=0.04 (makellos) /Schwarz=0.05 (makellos) .  Ungenau:       	---       	Schwarz=1     OK:         	Weiß=6     	Schwarz=5} 1/2-1/2

[Event "Romanian Championship 2024"]
[Site "Eforie Nord"]
[Date "2024.02.27"]
[Round "5.17"]
[White "Samu, Sorin-Mihai"]
[Black "Daianu, Cristian-Clement"]
[Result "1/2-1/2"]
[ECO "B20"]
[WhiteElo "2004"]
[BlackElo "2201"]
[Annotator "RC"]
[PlyCount "200"]
[EventDate "2024.02.24"]
[EventType "swiss"]
[EventCountry "ROU"]
[SourceTitle "playchess.com"]
[Source "ChessBase"]
[SourceQuality "1"]
[TimeControl "40/5400+30:900+30"]

1. e4 {[%emt 0:00:03]} c5 {[%emt 0:07:14]} 2. g3 {[%emt 0:00:08]} Nc6 {[%emt 0:00:49]} 3. Bg2 {[%emt 0:00:10]} g6 {[%emt 0:09:48]} 4. Ne2 {[%emt 0:01:45]} Bg7 {[%emt 0:00:55]} 5. c3 {[%emt 0:00:16]} e5 {[%emt 0:08:43]} 6. Na3 {[%emt 0:00:30]} Nge7 {[%emt 0:03:02]} 7. O-O {[%emt 0:01:06]} O-O {[%emt 0:00:40]} 8. d3 {[%emt 0:00:26]} d5 {[%emt 0:03:51]} 9. Bg5 {[%emt 0:00:44]} Be6 {[%emt 0:02:27]} 10. Qc1 {[%emt 0:01:55]} Qd7 {[%emt 0:03:13]} 11. Bh6 {[%emt 0:01:33]} Bh3 {[%emt 0:02:12]} 12. Bxg7 {[%emt 0:00:35]} Kxg7 {[%emt 0:00:03]} 13. Qe3 {[%emt 0:02:28]} Bxg2 {[%emt 0:26:07]} 14. Kxg2 {[%emt 0:00:11]} d4 {[%emt 0:09:14]} 15. cxd4 {[%emt 0:00:22]} Nxd4 {[%emt 0:00:05]} 16. Nxd4 {[%emt 0:01:17]} cxd4 {[%emt 0:02:39]} 17. Qg5 {[%emt 0:00:33]} Nc6 {[%emt 0:06:29]} 18. Nc4 {[%emt 0:02:12]} h6 {[%emt 0:03:28]} 19. Qd2 {[%emt 0:00:22]} f5 {[%emt 0:00:41]} 20. f3 {[%emt 0:02:45]} b5 {[%emt 0:02:27]} 21. Na5 {[%emt 0:00:54]} Rac8 {[%emt 0:02:03]} 22. Nb3 {[%emt 0:00:10]} Nd8 {[%emt 0:01:22]} 23. exf5 {[%emt 0:00:25]} Qxf5 {[%emt 0:00:51]} 24. Rae1 {[%emt 0:01:24]} Rc7 {[%emt 0:02:41]} 25. Re4 {[%emt 0:01:09]} Ne6 {[%emt 0:00:51]} 26. Qe2 {[%emt 0:02:12]} Rfc8 {[%emt 0:00:42]} 27. Rf2 {[%emt 0:02:38]} Rc2 {[%emt 0:00:31]} 28. Qxc2 {[%emt 0:01:36]} Rxc2 {[%emt 0:00:02]} 29. Rxc2 {[%emt 0:00:01]} Ng5 {[%emt 0:00:14]} 30. Rc7+ {[%emt 0:03:23]} Kf8 {[%emt 0:00:08]} 31. Nd2 {[%emt 0:02:14]} Qh3+ {[%emt 0:00:24]} 32. Kg1 {[%emt 0:00:02]} Nxe4 {[%emt 0:00:09]} 33. Nxe4 {[%emt 0:00:42]} Qe6 {[%emt 0:00:09]} 34. b3 {[%emt 0:02:26]} Qa6 {[%emt 0:02:04]} 35. Rc2 {[%emt 0:00:53]} b4 {[%emt 0:00:12]} 36. Nc5 {[%emt 0:01:37]} Qc6 {[%emt 0:01:26]} 37. Kf2 {[%emt 0:00:23]} Ke7 {[%emt 0:00:29]} 38. Rc4 {[%emt 0:00:46]} h5 {[%emt 0:00:17]} 39. h4 {[%emt 0:00:57]} Qc8 {[%emt 0:00:37]} 40. Kg2 {[%emt 0:00:00]} Qc6 {[%emt 0:00:00]} 41. Kf2 {[%emt 0:05:24]} Qc8 {[%emt 0:11:59]} 42. Kg2 {[%emt 0:00:57]} Qc6 {[%emt 0:00:11]} 43. Ne4 {[%emt 0:02:05]} Qa6 {[%emt 0:00:17]} 44. Nf2 {[%emt 0:00:08]} Qxa2 {[%emt 0:00:35]} 45. Rxb4 {[%emt 0:00:04]} a5 {[%emt 0:00:24]} 46. Ra4 {[%emt 0:01:16]} Qd2 {[%emt 0:00:14]} 47. Rc4 {[%emt 0:01:04]} Qa2 {[%emt 0:00:12]} 48. Rc5 {[%emt 0:01:33]} Kd6 {[%emt 0:00:44]} 49. Rb5 {[%emt 0:00:23]} Ke6 {[%emt 0:00:40]} 50. Rb6+ {[%emt 0:02:13]} Kf7 {[%emt 0:00:27]} 51. Ra6 {[%emt 0:01:32]} Kg7 {[%emt 0:01:56]} 52. b4 {[%emt 0:00:45]} a4 {[%emt 0:00:11]} 53. b5 {[%emt 0:00:08]} Qb2 {[%emt 0:02:52]} 54. Rxa4 {[%emt 0:00:59]} Qxb5 {[%emt 0:00:09]} 55. Ra7+ {[%emt 0:00:11]} Kf8 {[%emt 0:00:10]} 56. Ra2 {[%emt 0:00:42]} Ke7 {[%emt 0:01:57]} 57. Re2 {[%emt 0:00:02]} Kd6 {[%emt 0:00:09]} 58. Re4 {[%emt 0:00:58]} Qb7 {[%emt 0:01:28]} 59. g4 {[%emt 0:01:19]} Qf7 {[%emt 0:00:16]} 60. Kg3 {[%emt 0:01:57]} Qg7 {[%emt 0:00:22]} 61. g5 {[%emt 0:02:09]} Kd5 {[%emt 0:00:24]} 62. Nh3 {[%emt 0:00:47]} Qd7 {[%emt 0:00:32]} 63. Nf2 {[%emt 0:00:38]} Qc7 {[%emt 0:00:53]} 64. f4 {[%emt 0:03:25]} exf4+ {[%emt 0:00:03]} 65. Rxf4 {[%emt 0:00:27]} Kc5 {[%emt 0:00:54]} 66. Kf3 {[%emt 0:00:16]} Qb7+ {[%emt 0:00:29]} 67. Ne4+ {[%emt 0:00:29]} Kb4 {[%emt 0:00:07]} 68. Rf6 {[%emt 0:00:32]} Qd7 {[%emt 0:00:22]} 69. Nf2 {[%emt 0:05:19]} Kc3 {[%emt 0:00:16]} 70. Ke2 {[%emt 0:02:23]} Kc2 {[%emt 0:00:23]} 71. Kf1 {[%emt 0:00:32]} Qe8 {[%emt 0:00:40]} 72. Kg2 {[%emt 0:01:25]} Qa8+ {[%emt 0:00:35]} 73. Kg3 {[%emt 0:00:38]} Qb8+ {[%emt 0:00:17]} 74. Rf4 {[%emt 0:01:15]} Kc3 {[%emt 0:00:23]} 75. Kf3 {[%emt 0:00:26]} Qb7+ {[%emt 0:00:08]} 76. Re4 {[%emt 0:00:57]} Qf7+ {[%emt 0:00:38]} 77. Ke2 {[%emt 0:00:17]} Qa2+ {[%emt 0:00:16]} 78. Kf1 {[%emt 0:00:47]} Qf7 {[%emt 0:00:10]} 79. Kg2 {[%emt 0:00:39]} Qb7 {[%emt 0:00:04]} 80. Kg1 {[%emt 0:01:10]} Qb1+ {[%emt 0:00:33]} 81. Kh2 {[%emt 0:00:21]} Qb8+ {[%emt 0:00:04]} 82. Kh3 {[%emt 0:00:41]} Qc8+ {[%emt 0:00:15]} 83. Kg3 {[%emt 0:00:20]} Qc7+ {[%emt 0:00:11]} 84. Rf4 {[%emt 0:00:07]} Kd2 {[%emt 0:00:40]} 85. Kf3 {[%emt 0:01:04]} Qb7+ {[%emt 0:00:37]} 86. Re4 {[%emt 0:00:13]} Qf7+ {[%emt 0:00:58]} 87. Kg2 {[%emt 0:00:23]} Qb7 {[%emt 0:00:16]} 88. Kf3 {[%emt 0:04:06]} Qf7+ {[%emt 0:00:09]} 89. Rf4 {[%emt 0:02:25]} Qb7+ {[%emt 0:00:07]} 90. Kg3 {[%emt 0:00:59]} Qc7 {[%emt 0:00:09]} 91. Kf3 {[%emt 0:01:02]} Qb7+ {[%emt 0:00:07]} 92. Re4 {[%emt 0:00:09]} Qf7+ {[%emt 0:00:07]} 93. Kg3 {[%emt 0:00:55]} Qc7+ {[%emt 0:00:07]} 94. Kh3 {[%emt 0:00:42]} Qc8+ {[%emt 0:00:28]} 95. Kh2 {[%emt 0:00:16]} Qc7+ {[%emt 0:00:05]} 96. Kg1 {[%emt 0:00:55]} Qc1+ {[%emt 0:00:29]} 97. Kg2 {[%emt 0:00:19]} Qc6 {[%emt 0:00:10]} 98. Kf3 {[%emt 0:00:14]} Qb7 {[%emt 0:00:05]} 99. Kg2 {[%emt 0:07:24]} Qc6 {[%emt 0:00:26]} 100. Kg1 {[%emt 0:01:09]} Qc1+ {[%emt 0:00:09]} 1/2-1/2

[Event "Romanian Championship 2024"]
[Site "Eforie Nord"]
[Date "2024.02.27"]
[Round "5.18"]
[White "Voiteanu, Gabriel"]
[Black "Andronescu, Madalin"]
[Result "1-0"]
[ECO "E73"]
[WhiteElo "2151"]
[BlackElo "2007"]
[Annotator "RC"]
[PlyCount "57"]
[EventDate "2024.02.24"]
[EventType "swiss"]
[EventCountry "ROU"]
[SourceTitle "playchess.com"]
[Source "ChessBase"]
[SourceQuality "1"]
[TimeControl "40/5400+30:900+30"]

1. d4 {[%emt 0:02:21]} Nf6 {[%emt 0:00:07]} 2. c4 {[%emt 0:00:11]} g6 {[%emt 0:00:06]} 3. Nc3 {[%emt 0:00:04]} Bg7 {[%emt 0:00:06]} 4. e4 {[%emt 0:00:06]} d6 {[%emt 0:00:05]} 5. Be2 {[%emt 0:00:06]} O-O {[%emt 0:00:16]} 6. Be3 {[%emt 0:00:15]} e5 {[%emt 0:00:38]} 7. d5 {[%emt 0:00:20]} Na6 {[%emt 0:02:30]} 8. g4 {[%emt 0:00:50]} Nc5 {[%emt 0:00:17]} 9. f3 {[%emt 0:00:22]} h5 {[%emt 0:00:25]} 10. b4 {[%emt 0:00:20]} Na6 {[%emt 0:01:27]} 11. a3 {[%emt 0:00:28]} hxg4 {[%emt 0:00:10]} 12. Bg5 {[%emt 0:00:55]} Qd7 {[%emt 0:00:48]} 13. fxg4 {[%emt 0:01:46]} Nxg4 {[%emt 0:01:42]} 14. h3 {[%emt 0:00:58]} Nf6 {[%emt 0:01:26]} 15. h4 {[%emt 0:02:50]} Ng4 {[%emt 0:12:07]} 16. Nh3 {[%emt 0:15:05]} f5 {[%emt 0:01:47]} 17. Rg1 {[%emt 0:10:35]} Qf7 {[%emt 0:07:10]} 18. Qd2 {[%emt 0:09:22]} fxe4 {[%emt 0:00:30]} 19. Nxe4 {[%emt 0:05:15]} Nh2 {[%emt 0:00:04]} 20. Nhf2 {[%emt 0:09:52]} Nf3+ {[%emt 0:03:46]} 21. Bxf3 {[%emt 0:00:06]} Qxf3 {[%emt 0:00:04]} 22. Rg3 {[%emt 0:02:18]} Qh5 {[%emt 0:02:23]} 23. Qe2 {[%emt 0:05:12]} Qxe2+ {[%emt 0:12:12]} 24. Kxe2 {[%emt 0:00:02]} Rf7 {[%emt 0:00:43]} 25. h5 {[%emt 0:03:33]} gxh5 {[%emt 0:00:04]} 26. Rh1 {[%emt 0:04:39]} Kf8 {[%emt 0:10:55]} 27. Rxh5 {[%emt 0:00:47]} Bf5 {[%emt 0:00:04]} 28. Bh4 {[%emt 0:05:26]} Rb8 {[%emt 0:02:23]} 29. Ng5 {[%emt 0:01:48]} 1-0